bitfinex/quotes_ETHUSD_20241105
["timestamp","ask_amount","ask_price","bid_price","bid_amount"]
[1730841753858,0.0537265,2428.0,2427.7,4.90156]
[1730841754098,4.11829,2428.2,2427.7,4.90156]
[1730841754099,4.11829,2428.2,2427.7,5.803656]
[1730841754394,0.7559,2428.3,2427.8,4.20131976]
[1730841754551,0.05395783,2428.2,2427.8,4.20131976]
[1730841754754,0.7559,2428.3,2427.8,4.20131976]
[1730841755100,0.05395783,2428.2,2427.8,0.08236976]
[1730841755286,0.05395783,2428.2,2427.8,0.9069139]
[1730841755490,4.87411,2428.3,2427.8,0.9069139]
[1730841755799,0.05395783,2428.2,2427.8,0.9069139]
[1730841756096,4.87411,2428.3,2427.8,0.9069139]
[1730841756299,0.05384217,2428.1,2427.8,5.10817367]
[1730841756455,0.05364492,2428.2,2427.8,5.10817367]
[1730841756655,0.05341359,2428.0,2427.8,5.10817367]
[1730841756854,4.87411,2428.3,2427.8,5.10817367]
[1730841757102,0.05329791,2427.9,2427.8,5.10817367]
[1730841757297,4.87411,2428.3,2427.8,5.10817367]
[1730841757466,4.87411,2428.3,2427.8,5.0258039]
[1730841757671,0.05364492,2428.2,2427.8,5.0258039]
[1730841757971,4.11829,2428.2,2427.8,0.9069139]
[1730841758168,0.05348913,2428.1,2427.8,5.0258439]
[1730841758389,0.05348913,2428.1,2428.0,7.30175319]
[1730841758596,4.11788,2428.5,2428.0,8.09325319]
[1730841758792,0.0538401,2428.4,2428.0,0.7915]
[1730841758973,4.1182,2428.3,2427.9,1.31105071]
[1730841759179,0.82720881,2428.2,2427.6,3.7915]
[1730841759373,4.94562881,2428.2,2427.7,4.11909]
[1730841759579,0.05360881,2428.2,2427.8,4.11887]
[1730841759804,4.11811,2428.3,2427.8,4.11887]
[1730841760005,0.05366098,2428.2,2427.8,4.11887]
[1730841760211,4.11811,2428.3,2427.8,5.64013032]
[1730841760407,0.05366098,2428.2,2427.8,5.64013032]
[1730841760609,4.11811,2428.3,2427.8,5.64013032]
[1730841760794,0.05366098,2428.2,2427.8,5.64013032]
[1730841761011,4.11811,2428.3,2427.8,5.64013032]
[1730841761235,0.05366098,2428.2,2427.8,5.64013032]
[1730841761386,4.91934,2428.4,2427.9,4.11876]
[1730841761735,0.05377663,2428.3,2427.9,4.11876]
[1730841761883,0.05377663,2428.3,2427.9,4.66262887]
[1730841763229,4.17198663,2428.3,2427.9,0.54386887]
[1730841763521,4.17198663,2428.3,2427.8,5.64019032]
[1730841763721,4.17198663,2428.3,2427.9,4.11878]
[1730841765483,0.05377663,2428.3,2428.0,0.8028]
[1730841765683,0.05377663,2428.3,2428.0,4.92125]
[1730841765902,4.11802,2428.4,2428.0,1.85893303]
[1730841766100,0.05328386,2428.2,2428.0,0.8028]
[1730841766400,0.05377116,2428.1,2428.0,0.8028]
[1730841766619,4.11802,2428.4,2428.0,0.8028]
[1730841766811,0.05400243,2428.3,2428.0,0.8028]
[1730841767606,0.05400243,2428.3,2428.1,4.11836]
[1730841767939,4.89,2428.7,2428.2,5.022234]
[1730841769607,4.1177,2428.6,2428.2,0.903964]
[1730841769802,0.05436656,2428.5,2428.2,0.903964]
[1730841770448,4.17223656,2428.5,2428.2,0.903964]
[1730841770596,0.05436656,2428.5,2428.2,0.903964]
[1730841770952,4.1187,2428.0,2427.6,0.8292]
[1730841771310,0.05169528,2427.9,2427.6,4.94847]
[1730841771629,8.23647,2428.3,2427.7,4.11901]
[1730841771630,4.11828,2428.2,2427.7,4.11901]
[1730841771831,0.05194332,2428.1,2427.7,4.11901]
[1730841772146,0.05194332,2428.1,2427.7,5.025758]
[1730841775650,0.05194332,2428.1,2427.9,4.11873]
[1730841775854,4.11823,2428.3,2427.9,4.11873]
[1730841776072,0.05214005,2428.2,2427.9,4.11873]
[1730841776432,4.11823,2428.3,2427.9,4.11873]
[1730841776636,0.05133102,2428.2,2427.9,4.11873]
[1730841776864,4.11823,2428.3,2427.9,5.0331588]
[1730841777223,4.93396,2428.4,2428.0,0.7777]
[1730841777683,0.05144667,2428.3,2428.0,0.7777]
[1730841778045,0.05144667,2428.3,2428.1,4.11836]
[1730841778256,4.11761,2428.6,2428.1,8.23672]
[1730841778442,0.05211558,2428.5,2428.1,4.11836]
[1730841778670,0.05211558,2428.5,2428.1,5.11127688]
[1730841778840,4.16987558,2428.5,2428.1,5.11127688]
[1730841780139,0.05211558,2428.5,2428.2,4.11826]
[1730841780352,0.05211558,2428.5,2428.3,4.11808]
[1730841780577,4.88233,2428.7,2428.2,4.11826]
[1730841780781,0.05236255,2428.4,2428.2,9.23719569]
[1730841780997,4.88233,2428.7,2428.2,9.23719569]
[1730841781480,0.0525534,2428.6,2428.2,9.23719569]
[1730841781886,0.0525534,2428.6,2428.2,9.23711569]
[1730841782088,0.0525534,2428.6,2428.2,5.11891569]
[1730841782381,0.0525534,2428.6,2428.3,9.52556157]
[1730841782886,0.05244903,2428.5,2428.4,4.11781]
[1730841783070,0.05244903,2428.5,2428.4,4.7501605]
[1730841783385,0.7648,2429.0,2428.5,4.11766]
[1730841784269,0.7648,2429.0,2428.6,4.11758]
[1730841784460,4.11683,2429.1,2428.7,0.7777]
[1730841784658,0.7648,2429.2,2428.7,4.8951]
[1730841784924,0.7648,2429.2,2428.8,5.018438]
[1730841785231,0.7648,2429.2,2428.7,4.8951]
[1730841785405,0.7648,2429.2,2428.7,4.89501]
[1730841785601,0.05428799,2429.1,2428.7,4.89501]
[1730841787246,0.05428799,2429.1,2428.9,4.117]
[1730841787455,4.11658,2429.2,2428.7,4.89501]
[1730841787663,0.05428799,2429.1,2428.7,4.89501]
[1730841787867,4.17103799,2429.1,2428.7,4.89501]
[1730841788314,4.17103799,2429.1,2428.7,0.7777]
[1730841789381,0.05428799,2429.1,2428.7,4.89511]
[1730841789549,0.05428799,2429.1,2428.7,5.684531]
[1730841789761,4.11668,2429.2,2428.7,9.801851]
[1730841789949,0.05424466,2429.0,2428.7,9.801851]
[1730841790166,0.05436018,2429.1,2428.7,9.801851]
[1730841790369,0.05412913,2428.9,2428.7,9.801851]
[1730841790539,4.11668,2429.2,2428.7,5.684531]
[1730841790739,0.05401359,2428.8,2428.7,4.89502]
[1730841791088,4.11652,2429.3,2428.8,4.11725]
[1730841791269,4.11652,2429.3,2428.7,4.89512]
[1730841791270,4.11663,2429.2,2428.7,4.89512]
[1730841791994,4.11663,2429.2,2428.6,7.11758]
[1730841791995,4.11686,2429.1,2428.5,3.0]
[1730841792139,4.11692,2429.0,2428.6,0.8234]
[1730841792781,4.11692,2429.0,2428.2,1.00073569]
[1730841792782,4.87513,2428.7,2428.0,4.11849]
[1730841792945,4.11778,2428.5,2428.1,0.8234]
[1730841793143,0.7576,2428.7,2427.8,4.11883]
[1730841793144,0.7576,2428.2,2427.8,4.11883]
[1730841793447,0.05246034,2428.1,2427.8,4.11883]
[1730841793697,0.7576,2428.4,2427.9,4.11865]
[1730841793984,0.05210252,2428.0,2427.9,5.34305232]
[1730841794149,0.7576,2428.4,2427.9,5.34305232]
[1730841794346,0.05208426,2428.0,2427.9,5.34305232]
[1730841794871,0.7576,2428.4,2427.9,5.34305232]
[1730841795048,0.05208426,2428.0,2427.9,5.34305232]
[1730841795382,0.7576,2428.4,2427.9,5.34305232]
[1730841795568,0.05208426,2428.0,2427.9,5.34305232]
[1730841795769,0.7576,2428.4,2427.9,5.34305232]
[1730841795968,0.05208239,2428.0,2427.9,1.22440232]
[1730841796184,0.7576,2428.4,2427.9,1.22440232]
[1730841796185,4.11813,2428.3,2427.9,1.22440232]
[1730841796358,4.11813,2428.3,2427.8,4.11883]
[1730841796795,0.05247512,2428.2,2427.8,8.2377]
[1730841797000,0.05247512,2428.2,2427.9,4.11876]
[1730841797159,0.05183399,2428.1,2427.9,4.11876]
[1730841797367,4.87555,2428.4,2427.9,4.11876]
[1730841797566,0.05206527,2428.3,2427.9,4.11876]
[1730841799613,4.17019527,2428.3,2427.9,4.11876]
[1730841799770,4.11828,2428.2,2427.7,0.8234]
[1730841799967,8.23667,2428.2,2427.7,7.9425]
[1730841800171,0.05183399,2428.1,2427.7,7.9425]
[1730841800814,4.17028399,2428.1,2427.7,7.9425]
[1730841801581,0.05183399,2428.1,2427.7,7.9425]
[1730841801817,4.1181,2428.3,2427.8,4.11891]
[1730841802021,0.05193359,2428.2,2427.8,4.11891]
[1730841802173,4.11828,2428.2,2427.8,4.11891]
[1730841802373,0.05181794,2428.1,2427.7,8.73675]
[1730841804223,0.05181794,2428.1,2427.8,4.11879]
[1730841804424,6.15469307,2428.4,2427.9,4.11874]
[1730841804630,0.05032979,2428.3,2427.9,4.11874]
[1730841804986,4.16843979,2428.3,2427.8,4.11879]
[1730841805216,4.11828,2428.2,2427.8,4.11879]
[1730841805411,0.05004233,2428.1,2427.8,4.11879]
[1730841806932,6.21845307,2428.6,2428.0,4.11861]
[1730841807113,2.10072307,2428.6,2428.2,4.11811]
[1730841807432,0.8217,2428.6,2428.2,8.23629]
[1730841807598,0.8217,2428.6,2428.2,4.941739]
[1730841807937,2.10072307,2428.6,2428.2,4.941739]
[1730841808111,0.8217,2428.6,2428.2,4.941739]
[1730841808286,0.04883751,2428.5,2428.3,4.1181]
[1730841808486,0.04883751,2428.5,2428.2,5.742939]
[1730841808725,5.39646307,2428.7,2428.2,5.742939]
[1730841808933,0.0487219,2428.4,2428.2,5.742939]
[1730841809146,5.39646307,2428.7,2428.2,5.742939]
[1730841809430,5.39646307,2428.7,2428.2,4.91931]
[1730841809636,0.04899346,2428.6,2428.2,0.8012]
[1730841809796,0.04899346,2428.6,2428.3,4.11809]
[1730841810127,0.04899346,2428.6,2428.4,4.11787]
[1730841810633,0.04889804,2428.5,2428.4,4.11787]
[1730841810838,6.21798307,2428.8,2428.4,4.11787]
[1730841810994,0.04912921,2428.7,2428.4,4.11787]
[1730841811201,6.21798307,2428.8,2428.4,4.11787]
[1730841811442,0.04912921,2428.7,2428.4,4.11787]
[1730841811618,6.21798307,2428.8,2428.4,4.11787]
[1730841811944,0.04814255,2428.7,2428.4,4.11787]
[1730841812299,6.21798307,2428.8,2428.2,4.1182]
[1730841812500,0.8286,2428.4,2428.0,4.11847]
[1730841812934,4.11827,2428.2,2427.8,4.11883]
[1730841813140,4.11846,2428.1,2427.6,4.11918]
[1730841813305,4.16538399,2428.1,2427.6,8.23839]
[1730841813641,0.8286,2427.9,2427.4,4.1195]
[1730841813804,0.8286,2427.9,2427.2,4.91717]
[1730841813805,4.16618869,2427.8,2427.2,4.91717]
[1730841814008,4.16618869,2427.8,2427.2,4.11987]
[1730841814208,8.28523869,2427.8,2427.2,4.11987]
[1730841814433,4.16618869,2427.8,2427.2,8.23975]
[1730841814639,4.16618869,2427.8,2427.2,4.11987]
[1730841814640,8.28524869,2427.8,2427.2,4.11987]
[1730841814853,9.37447731,2427.8,2427.2,4.11987]
[1730841815144,5.25541731,2427.8,2427.2,8.23973]
[1730841815303,5.25541731,2427.8,2427.2,4.11986]
[1730841815504,5.25541731,2427.8,2427.1,3.0]
[1730841815505,4.94799,2427.6,2427.1,3.0]
[1730841815846,0.04677051,2427.5,2427.0,8.24043]
[1730841816001,4.16623051,2427.5,2427.0,4.12021]
[1730841816400,8.28579051,2427.5,2427.0,4.12021]
[1730841816650,4.16623051,2427.5,2427.0,4.12021]
[1730841817108,8.28578051,2427.5,2427.0,4.12021]
[1730841817321,4.16623051,2427.5,2427.0,4.12021]
[1730841817938,0.04677051,2427.5,2427.2,4.11996]
[1730841821554,0.04677051,2427.5,2427.1,3.0]
[1730841821706,4.16623051,2427.5,2427.1,3.0]
[1730841822044,8.28580051,2427.5,2427.1,3.0]
[1730841822403,4.16623051,2427.5,2427.1,3.0]
[1730841822652,5.07763756,2427.5,2427.0,4.12016]
[1730841823254,0.04677051,2427.5,2427.1,4.12002]
[1730841823547,0.04677051,2427.5,2427.3,4.11969]
[1730841823926,4.94425,2427.8,2427.3,4.11969]
[1730841824122,0.04482775,2427.4,2427.3,4.11969]
[1730841824344,4.94425,2427.8,2427.3,4.11969]
[1730841824547,0.04442241,2427.4,2427.2,0.7621]
[1730841824753,4.11913,2427.7,2427.2,4.11994]
[1730841825266,0.04465386,2427.6,2427.3,4.1198]
[1730841825434,0.8252,2427.8,2427.3,4.1198]
[1730841825621,0.04476957,2427.7,2427.3,4.1198]
[1730841825818,4.9442,2427.8,2427.3,4.1198]
[1730841826150,0.04476957,2427.7,2427.3,4.1198]
[1730841826654,4.9442,2427.8,2427.3,4.1198]
[1730841826856,0.04476957,2427.7,2427.3,4.1198]
[1730841827019,4.9442,2427.8,2427.3,4.1198]
[1730841827221,0.04476957,2427.7,2427.3,4.1198]
[1730841827417,4.9442,2427.8,2427.3,4.1198]
[1730841827652,0.04425082,2427.7,2427.3,4.1198]
[1730841827824,4.9442,2427.8,2427.3,4.1198]
[1730841828262,0.04425082,2427.7,2427.3,4.1198]
[1730841828444,4.9442,2427.8,2427.3,4.1198]
[1730841828649,0.04425082,2427.7,2427.3,4.1198]
[1730841828850,4.9442,2427.8,2427.3,4.1198]
[1730841829025,0.04425082,2427.7,2427.3,4.1198]
[1730841829361,0.04425082,2427.7,2427.2,4.11994]
[1730841829362,4.11915,2427.7,2427.2,4.11994]
[1730841829556,4.16374962,2427.6,2427.2,4.11994]
[1730841829771,4.16374962,2427.6,2427.2,8.23981]
[1730841829772,0.04445962,2427.6,2427.2,8.23981]
[1730841829979,0.04445962,2427.6,2427.3,4.11978]
[1730841830267,9.0633,2427.8,2427.3,4.11978]
[1730841830570,0.04463589,2427.7,2427.3,4.11978]
[1730841831269,0.04413511,2427.6,2427.3,4.11978]
[1730841831453,9.06324,2427.8,2427.3,4.11978]
[1730841831649,0.04425082,2427.7,2427.3,4.11978]
[1730841831839,10.01950544,2427.8,2427.3,4.11978]
[1730841832041,0.04425082,2427.7,2427.3,4.11978]
[1730841832225,10.01950544,2427.8,2427.3,4.11978]
[1730841832425,0.04425082,2427.7,2427.3,4.11978]
[1730841832625,10.01950544,2427.8,2427.3,4.11978]
[1730841832826,0.04425082,2427.7,2427.3,4.11978]
[1730841833170,10.01950544,2427.8,2427.3,4.11978]
[1730841833463,0.04425082,2427.7,2427.4,4.11962]
[1730841833679,4.9442,2427.8,2427.4,4.11962]
[1730841833882,0.04425082,2427.7,2427.2,8.23969]
[1730841834065,0.04425082,2427.7,2427.2,9.45860332]
[1730841835395,0.04425082,2427.7,2427.3,4.1198]
[1730841835683,9.06327,2427.8,2427.3,4.1198]
[1730841835881,4.16351886,2427.7,2427.1,4.12]
[1730841836084,5.12423219,2427.7,2427.1,4.12]
[1730841836475,4.91062,2427.6,2427.2,4.11995]
[1730841836673,0.04402744,2427.5,2427.2,4.11995]
[1730841837697,0.04402744,2427.5,2427.2,8.2398]
[1730841839062,0.04402744,2427.5,2427.2,4.11985]
[1730841839263,0.04402744,2427.5,2427.3,4.531705]
[1730841840055,0.04402744,2427.5,2427.3,4.11972]
[1730841840512,0.04402744,2427.5,2427.0,4.12017]
[1730841840800,4.91102,2427.4,2426.9,7.12046]
[1730841841215,0.7913,2427.4,2426.9,7.12046]
[1730841841381,4.1198,2427.3,2426.9,4.12046]
[1730841841987,0.04304292,2427.2,2426.9,4.12046]
[1730841842269,4.91094,2427.4,2426.9,4.12038]
[1730841842467,0.04315867,2427.3,2427.0,4.12023]
[1730841844768,0.04315867,2427.3,2427.0,4.12021]
[1730841845068,0.04315867,2427.3,2427.1,4.532121]
[1730841846518,0.04315867,2427.3,2427.1,0.412021]
[1730841846762,0.04315867,2427.3,2427.2,4.11997]
[1730841847061,4.91059,2427.6,2427.1,4.532081]
[1730841847266,0.04371498,2427.5,2427.1,4.12006]
[1730841847465,0.04371498,2427.5,2427.2,4.1198]
[1730841847850,0.04371498,2427.5,2427.3,4.11976]
[1730841848060,0.04371498,2427.5,2427.4,4.11963]
[1730841848794,0.7913,2427.8,2427.4,4.11963]
[1730841848956,0.04243238,2427.5,2427.4,4.11963]
[1730841849154,0.7913,2427.8,2427.4,4.11963]
[1730841849397,0.04227081,2427.5,2427.4,4.11963]
[1730841849559,0.7913,2427.8,2427.4,5.1022146]
[1730841849761,0.04227081,2427.5,2427.4,4.11963]
[1730841850094,0.7913,2427.8,2427.5,4.11946]
[1730841850705,4.11912,2427.7,2427.2,4.11988]
[1730841851202,0.7913,2427.8,2427.5,4.11944]
[1730841852189,0.7913,2427.8,2427.6,4.11927]
[1730841852594,0.7913,2427.8,2427.5,4.11944]
[1730841852788,0.04285304,2427.7,2427.5,4.11944]
[1730841853301,0.7913,2427.8,2427.6,4.11926]
[1730841854693,0.7913,2427.8,2427.5,4.11944]
[1730841855401,0.7913,2427.8,2427.5,4.11937]
[1730841855608,0.7913,2427.8,2427.5,8.23871]
[1730841856105,0.7913,2427.8,2427.6,4.11926]
[1730841857084,0.7913,2427.8,2427.6,5.02507]
[1730841857283,2.05712307,2428.0,2427.6,5.02507]
[1730841857524,1.27902307,2427.9,2427.6,5.02507]
[1730841858315,2.05712307,2428.0,2427.6,5.02507]
[1730841858623,1.27902307,2427.9,2427.6,5.02507]
[1730841858824,1.27902307,2427.9,2427.5,4.11934]
[1730841858825,1.27902307,2427.8,2427.5,4.11934]
[1730841859118,1.27902307,2427.7,2427.4,3.0]
[1730841859319,5.39798307,2427.8,2427.4,3.0]
[1730841859636,1.32205784,2427.7,2427.4,7.11962]
[1730841860340,0.7781,2427.6,2427.2,0.7645]
[1730841860617,6.21795806,2427.6,2427.1,8.24005]
[1730841861734,6.21795806,2427.6,2427.1,4.12]
[1730841861950,5.39850307,2427.5,2427.0,4.12028]
[1730841862242,4.93556,2427.3,2426.8,4.12063]
[1730841862392,6.21458307,2427.3,2426.7,8.07364319]
[1730841862591,4.16100152,2427.2,2426.7,4.1207]
[1730841862796,4.16100152,2427.2,2426.7,8.24143]
[1730841863237,4.16100152,2427.2,2426.7,4.1207]
[1730841863744,0.04096152,2427.2,2426.7,4.1207]
[1730841863953,4.16093152,2427.2,2426.7,4.1207]
[1730841864165,4.16093152,2427.2,2426.7,8.24143]
[1730841864469,0.04096152,2427.2,2426.8,4.12065]
[1730841864811,2.09462307,2427.3,2426.9,4.12046]
[1730841865011,0.0408458,2427.1,2427.0,4.1203]
[1730841865243,0.8156,2427.3,2427.0,4.1203]
[1730841865519,0.0408458,2427.1,2427.0,4.1203]
[1730841865831,0.8156,2427.3,2427.0,4.1203]
[1730841866016,0.0408458,2427.1,2426.9,4.12046]
[1730841866216,0.8156,2427.3,2426.9,4.12046]
[1730841866442,0.04063753,2427.0,2426.9,4.12046]
[1730841866642,0.8156,2427.3,2427.0,4.12027]
[1730841867314,4.93554,2427.3,2426.8,4.12064]
[1730841867619,6.21456307,2427.3,2426.8,4.12064]
[1730841868245,6.21456307,2427.3,2426.7,8.12095319]
[1730841868447,4.12002,2427.2,2426.7,4.93781]
[1730841868764,4.12002,2427.2,2426.7,9.0585]
[1730841868967,4.12014,2427.1,2426.7,4.12069]
[1730841869168,4.11998,2427.2,2426.7,8.24141]
[1730841869460,4.11998,2427.2,2426.8,4.12063]
[1730841870231,0.7886,2427.1,2426.7,4.12069]
[1730841870431,0.82921606,2427.1,2426.7,4.12069]
[1730841870652,4.94937606,2427.1,2426.6,3.0]
[1730841870825,0.7886,2426.8,2426.4,4.12132]
[1730841871164,0.04017317,2426.7,2426.4,4.12132]
[1730841871529,0.7886,2426.8,2426.4,4.12132]
[1730841871729,0.7886,2426.8,2426.3,4.88559]
[1730841871730,0.04017317,2426.7,2426.3,4.88559]
[1730841871976,0.04017317,2426.7,2426.1,3.18314319]
[1730841871977,5.02789632,2426.7,2426.1,4.12171]
[1730841872174,0.0400574,2426.6,2426.2,4.12165]
[1730841872330,0.0400574,2426.6,2426.3,4.1214]
[1730841872531,4.90934,2426.8,2426.3,4.1214]
[1730841872772,0.03974664,2426.7,2426.4,4.12127]
[1730841873149,4.90925,2426.8,2426.4,4.12127]
[1730841873457,0.03963087,2426.6,2426.4,4.12127]
[1730841873641,4.90925,2426.8,2426.4,4.12127]
[1730841873845,0.03951508,2426.5,2426.4,4.12127]
[1730841874090,4.90925,2426.8,2426.4,4.12127]
[1730841874234,0.03951508,2426.5,2426.4,4.12127]
[1730841874434,4.90925,2426.8,2426.4,4.12127]
[1730841874663,0.03945873,2426.5,2426.4,4.12127]
[1730841874872,4.90925,2426.8,2426.4,4.12127]
[1730841875120,0.03806182,2426.5,2426.1,4.12174]
[1730841875235,1.691584,2426.8,2426.2,4.12152]
[1730841875435,0.03810375,2426.4,2426.3,4.1214]
[1730841875742,0.7886,2426.8,2426.4,4.12127]
[1730841876147,0.7886,2426.8,2426.5,4.12115]
[1730841876545,4.90927,2426.8,2426.3,4.1214]
[1730841876836,0.7886,2426.8,2426.5,4.12112]
[1730841877039,0.7886,2426.8,2426.6,4.12099]
[1730841877276,0.7886,2426.8,2426.5,4.12112]
[1730841877581,0.03820862,2426.7,2426.5,4.12112]
[1730841877936,0.7886,2426.8,2426.5,4.12112]
[1730841878379,0.03691759,2426.7,2426.5,8.2422]
[1730841878577,0.7886,2426.8,2426.5,8.2422]
[1730841878890,0.03680182,2426.6,2426.5,4.12108]
[1730841879077,0.7871,2427.0,2426.6,4.12086]
[1730841879776,0.7871,2427.0,2426.8,4.12057]
[1730841880852,0.7871,2427.0,2426.7,4.1208]
[1730841881259,0.03681831,2426.9,2426.7,4.1208]
[1730841882184,0.03681831,2426.9,2426.6,4.12088]
[1730841882498,0.03681831,2426.9,2426.8,4.12065]
[1730841883687,4.91621,2427.3,2426.8,4.12065]
[1730841884210,0.03728198,2427.2,2426.8,4.12065]
[1730841884413,4.91621,2427.3,2426.8,4.12065]
[1730841884722,0.03716624,2427.1,2426.8,4.12065]
[1730841884916,0.03728198,2427.2,2426.8,4.12065]
[1730841885126,4.91621,2427.3,2426.8,4.12065]
[1730841885523,0.03728198,2427.2,2426.8,4.12065]
[1730841885887,0.03716624,2427.1,2426.8,4.12065]
[1730841886333,4.91621,2427.3,2426.8,4.12065]
[1730841886691,0.03728198,2427.2,2426.8,4.12065]
[1730841887098,0.03716624,2427.1,2426.8,4.12065]
[1730841887591,0.0370505,2427.0,2426.8,4.12065]
[1730841888132,4.91621,2427.3,2426.8,4.12065]
[1730841888303,0.03693474,2426.9,2426.8,4.12065]
[1730841888508,4.91621,2427.3,2426.8,4.12065]
[1730841888716,0.03693474,2426.9,2426.8,4.12065]
[1730841888905,4.91621,2427.3,2426.8,4.12065]
[1730841889089,0.03693474,2426.9,2426.8,4.12065]
[1730841889287,4.91621,2427.3,2426.8,4.12065]
[1730841889486,6.44769331,2427.3,2426.8,4.12065]
[1730841889904,0.03728198,2427.2,2426.8,4.12065]
[1730841890110,0.03728198,2427.2,2426.9,4.12046]
[1730841890340,0.03700066,2427.1,2427.0,4.12023]
[1730841890537,0.7964,2427.3,2426.8,2.17033058]
[1730841890538,0.7964,2427.3,2426.8,4.92015]
[1730841890735,8.27733395,2427.2,2426.7,4.12081]
[1730841890937,8.27733395,2427.2,2426.6,2.17033058]
[1730841890938,4.12018,2427.1,2426.6,6.29130058]
[1730841891152,4.12084,2426.7,2426.2,6.32085058]
[1730841891354,4.87979,2426.6,2426.2,4.12162]
[1730841891557,4.91668844,2426.6,2426.1,4.12182]
[1730841891761,5.82044128,2426.6,2426.1,4.12182]
[1730841892326,5.82044128,2426.6,2426.1,4.12172]
[1730841893323,9.94153128,2426.6,2426.1,4.12172]
[1730841893530,5.82044128,2426.6,2426.2,4.12166]
[1730841894666,5.82044128,2426.6,2426.1,4.12172]
[1730841895169,5.82044128,2426.6,2426.1,8.24347]
[1730841895545,5.82044128,2426.6,2426.1,4.12172]
[1730841895746,5.82044128,2426.6,2426.1,8.24346]
[1730841895966,0.79569844,2426.6,2426.2,4.12154]
[1730841896280,0.79569844,2426.6,2426.2,4.12167]
[1730841896576,0.79569844,2426.6,2426.1,5.022766]
[1730841896776,4.91671844,2426.6,2426.2,4.12164]
[1730841897072,0.79569844,2426.6,2426.2,4.12164]
[1730841897229,0.79569844,2426.6,2426.3,4.12147]
[1730841898951,0.79569844,2426.6,2426.4,4.12132]
[1730841899342,0.03689844,2426.6,2426.4,4.12132]
[1730841899535,0.7556,2426.8,2426.4,4.12132]
[1730841899737,0.03676367,2426.7,2426.4,4.12132]
[1730841899977,0.7556,2426.8,2426.4,5.00351286]
[1730841900492,0.03672326,2426.7,2426.4,5.00351286]
[1730841900838,0.7556,2426.8,2426.4,5.00351286]
[1730841901039,0.03660748,2426.6,2426.4,5.00351286]
[1730841901255,0.7556,2426.8,2426.4,5.00351286]
[1730841901493,0.03649169,2426.5,2426.4,4.12132]
[1730841902080,0.7556,2426.8,2426.4,4.12132]
[1730841902236,0.03649169,2426.5,2426.4,4.12132]
[1730841902436,4.87625,2426.8,2426.4,4.12132]
[1730841902637,0.03649169,2426.5,2426.4,4.12132]
[1730841902887,5.39927307,2427.1,2426.6,4.12091]
[1730841903192,5.39927307,2427.1,2426.5,4.12113]
[1730841903193,4.15748055,2427.0,2426.5,4.12113]
[1730841905337,4.15748055,2427.0,2426.4,4.12121]
[1730841905338,4.15748055,2427.0,2426.6,4.12098]
[1730841906664,0.03707055,2427.0,2426.6,4.12098]
[1730841906838,0.03707055,2427.0,2426.6,8.653908]
[1730841907448,1.31609362,2427.0,2426.6,8.653908]
[1730841907871,0.03707055,2427.0,2426.6,8.653908]
[1730841908262,1.31609362,2427.0,2426.6,8.653908]
[1730841908467,5.43640362,2427.0,2426.6,4.532928]
[1730841908661,0.7578,2426.8,2426.4,4.12121]
[1730841908981,0.7578,2426.8,2426.5,4.12105]
[1730841908982,0.03656612,2426.7,2426.5,4.12105]
[1730841909648,0.7578,2426.8,2426.5,4.12105]
[1730841909856,0.03649075,2426.6,2426.5,4.12105]
[1730841910049,2.03682307,2427.0,2426.5,5.025066]
[1730841910282,2.03682307,2427.0,2426.6,4.1209]
[1730841911292,6.15714307,2427.0,2426.6,4.1209]
[1730841912447,0.03683806,2426.9,2426.6,4.1209]
[1730841913346,0.03683806,2426.9,2426.3,4.91925]
[1730841913347,0.03683806,2426.9,2426.5,4.12114]
[1730841914279,1.31586113,2426.9,2426.5,8.24222]
[1730841914480,1.31586113,2426.9,2426.5,4.12108]
[1730841915055,1.31586113,2426.9,2426.6,4.12098]
[1730841916042,1.31586113,2426.9,2426.5,4.12108]
[1730841916685,1.31586113,2426.9,2426.6,4.12091]
[1730841918494,1.31586113,2426.9,2426.7,4.12073]
[1730841919349,0.03683806,2426.9,2426.7,4.12073]
[1730841919893,5.43643113,2426.9,2426.4,4.12133]
[1730841920185,6.18417307,2426.8,2426.4,4.12133]
[1730841920387,0.036518,2426.7,2426.2,4.12155]
[1730841920697,4.157418,2426.7,2426.2,4.12155]
[1730841920904,4.12152,2426.3,2425.8,4.9794896]
[1730841921099,0.7845,2426.2,2426.0,4.12189]
[1730841921396,0.7845,2426.4,2426.1,4.12184]
[1730841921596,0.03612002,2426.3,2426.1,4.12184]
[1730841921749,0.03612002,2426.3,2426.0,4.12186]
[1730841921750,0.03612002,2426.3,2426.0,8.24377]
[1730841921949,0.03612002,2426.3,2426.0,4.12186]
[1730841922153,0.7845,2426.4,2426.1,4.12173]
[1730841922466,0.82061458,2426.4,2426.1,4.12173]
[1730841923496,0.82061458,2426.4,2426.1,4.94183]
[1730841923656,0.82061458,2426.4,2426.2,4.12166]
[1730841925017,0.82061458,2426.4,2426.1,0.8201]
[1730841925193,0.82061458,2426.4,2426.0,5.08337999]
[1730841925517,0.82061458,2426.4,2426.0,9.20529999]
[1730841925719,0.82061458,2426.4,2426.0,5.08337999]
[1730841926586,0.7845,2426.4,2426.0,5.08337999]
[1730841926994,4.90584,2426.4,2426.0,5.08337999]
[1730841927181,4.90584,2426.4,2425.9,0.90253489]
[1730841927182,4.90584,2426.4,2425.9,4.12216]
[1730841927786,4.90584,2426.4,2426.0,4.12198]
[1730841928928,9.02726,2426.4,2425.9,4.12216]
[1730841931383,4.12175,2426.2,2425.8,4.12233]
[1730841931582,4.12175,2426.2,2425.7,5.55349533]
[1730841931583,0.7845,2426.1,2425.7,5.55349533]
[1730841935827,4.90643,2426.1,2425.7,0.0598954]
[1730841936032,4.12209,2426.0,2425.7,0.0598954]
[1730841936713,4.12228,2425.9,2425.7,0.0598954]
[1730841936918,0.7751,2425.8,2425.7,0.0598954]
[1730841937088,4.89745,2425.8,2425.7,0.0598954]
[1730841944466,0.8312,2426.0,2425.7,1.43100533]
[1730841944678,4.95323,2426.0,2425.7,1.43100533]
[1730841944965,4.95323,2426.0,2425.7,0.0598954]